fUST/lending_fUST_20251012
["ID","MTS","AMOUNT","RATE_DAILY","PERIOD"]
[390977655,1760257648447,-500.0,0.00023999,2]
[390977656,1760257648468,-503.84759013,0.00023999,2]
[390977657,1760257648488,-500.0,0.00023999,2]
[390977658,1760257648507,-500.0,0.00023999,2]
[390977659,1760257648527,-500.0,0.00023999,2]
[390977660,1760257648550,-157.757348,0.00023999,2]
[390977661,1760257648569,-500.0,0.00023999,2]
[390977662,1760257648591,-228.31932274,0.00023999,2]
[390977663,1760257666626,10000.01,0.00018,2]
[390977664,1760257666648,10000.01,0.00018,2]
[390977665,1760257666670,10000.01,0.00018,2]
[390977666,1760257666691,10000.01,0.00018,2]
[390977667,1760257666714,6312.73962416,0.00018,2]
[390977669,1760257703904,150.0,0.00018931,2]
[390977670,1760257704298,150.0,0.00020652,2]
[390977672,1760257760403,773.0,0.0002,5]
[390977674,1760257781657,93.33028969,0.00018932,2]
[390977675,1760257781680,56.66971031,0.00018932,2]
[390977676,1760257782063,150.0,0.00020653,2]
[390977705,1760257832241,-1000.0,0.00022,7]
[390977724,1760257838293,-150.0,0.00022374,2]
[390977726,1760257838303,-500.0,0.0002271,2]
[390977728,1760257838313,-5000.0,0.00023527,2]
[390977730,1760257838322,-247.65243812,0.00023765,2]
[390977732,1760257838332,-344.05342886,0.00023879,12]
[390977734,1760257838341,-300.0,0.00023998,2]
[390977736,1760257838351,-1200.0,0.00023998,2]
[390977738,1760257838360,-271.68067726,0.00023999,2]
[390977739,1760257838371,-630.94,0.00023999,2]
[390977742,1760257838389,-510.1858937,0.00023999,2]
[390977745,1760257838400,-500.0,0.00023999,2]
[390977747,1760257838410,-500.0,0.00023999,2]
[390977749,1760257838420,-576.64651153,0.00023999,2]
[390977751,1760257838430,-500.0,0.00023999,2]
[390977753,1760257838440,-501.49808194,0.00023999,2]
[390977755,1760257838449,-500.0,0.00023999,2]
[390977756,1760257838459,-222.320223,0.00023999,2]
[390977758,1760257838470,-25000.0,0.00024,2]
[390977759,1760257838480,-1271.54994924,0.0002402,2]
[390977760,1760257838490,-1563.0,0.00024026,2]
[390977761,1760257838500,-594.2,0.00024032,10]
[390977763,1760257838511,-495.17,0.00024032,10]
[390977764,1760257838521,-172.53033048,0.00024041,2]
[390977765,1760257838531,-370000.0,0.00024042,2]
[390977766,1760257838542,-500.0,0.00024073,2]
[390977767,1760257838552,-500.0,0.00024073,2]
[390977768,1760257838562,-500.0,0.00024073,2]
[390977769,1760257838572,-500.0,0.00024073,2]
[390977770,1760257838582,-500.0,0.00024073,2]
[390977771,1760257838592,-500.0,0.00024073,2]
[390977772,1760257838602,-500.0,0.00024073,2]
[390977773,1760257838612,-500.0,0.00024073,2]
[390977774,1760257838622,-285.0631071,0.00024073,2]
[390977775,1760257838632,-500.0,0.00024073,2]
[390977776,1760257838642,-501.76080862,0.00024073,2]
[390977777,1760257838652,-500.0,0.00024073,2]
[390977778,1760257838662,-500.0,0.00024073,2]
[390977779,1760257838671,-189.21,0.00024095,2]
[390977780,1760257838681,-200.0,0.000241,7]
[390977781,1760257838690,-500.0,0.00024139,2]
[390977782,1760257838700,-500.0,0.00024139,2]
[390977783,1760257838710,-500.0,0.00024139,2]
[390977784,1760257838719,-343.95,0.00024139,2]
[390977785,1760257838729,-500.0,0.00024139,2]
[390977786,1760257838739,-312.42181517,0.00024139,2]
[390977787,1760257838748,-500.0,0.0002414,2]
[390977788,1760257838759,-358.67224286,0.00024141,2]
[390977789,1760257838768,-174.97,0.00024141,2]
[390977790,1760257838777,-500.0,0.00024141,2]
[390977791,1760257838787,-500.0,0.00024141,2]
[390977792,1760257838797,-500.0,0.00024141,2]
[390977793,1760257838807,-500.0,0.00024141,2]
[390977794,1760257838816,-500.0,0.00024141,2]
[390977795,1760257838827,-500.0,0.00024141,2]
[390977796,1760257838837,-365.14,0.00024141,2]
[390977797,1760257838847,-500.0,0.00024141,2]
[390977798,1760257838857,-500.0,0.00024141,2]
[390977799,1760257838868,-500.0,0.00024141,2]
[390977800,1760257838879,-500.0,0.00024141,2]
[390977801,1760257838890,-500.0,0.00024141,2]
[390977802,1760257838900,-627.55160979,0.00024141,2]
[390977803,1760257838910,-500.0,0.00024141,2]
[390977804,1760257838920,-470.09024654,0.00024141,2]
[390977805,1760257838930,-500.0,0.00024141,2]
[390977806,1760257838940,-500.0,0.00024141,2]
[390977807,1760257838950,-500.0,0.00024141,2]
[390977808,1760257838960,-500.0,0.00024141,2]
[390977809,1760257838969,-500.0,0.00024141,2]
[390977810,1760257838979,-500.0,0.00024141,2]
[390977811,1760257838989,-500.0,0.00024141,2]
[390977812,1760257838998,-500.0,0.00024141,2]
[390977813,1760257839008,-500.0,0.00024141,2]
[390977814,1760257839017,-296.0,0.00024141,2]
[390977815,1760257839027,-500.0,0.00024141,2]
[390977816,1760257839036,-500.0,0.00024141,2]
[390977817,1760257839046,-500.0,0.00024141,2]
[390977818,1760257839055,-500.0,0.00024141,2]
[390977819,1760257839065,-356.76,0.00024141,2]
[390977820,1760257839076,-500.0,0.00024141,2]
[390977821,1760257839085,-500.0,0.00024141,2]
[390977822,1760257839094,-500.0,0.00024141,2]
[390977823,1760257839105,-500.0,0.00024141,2]
[390977824,1760257839114,-500.0,0.00024141,2]
[390977825,1760257839124,-500.0,0.00024141,2]
[390977826,1760257839133,-500.33364532,0.00024141,2]
[390977827,1760257839143,-500.0,0.00024141,2]
[390977828,1760257839152,-500.0,0.00024141,2]
[390977829,1760257839162,-601.67,0.00024141,2]
[390977830,1760257839172,-500.0,0.00024141,2]
[390977831,1760257839181,-500.0,0.00024141,2]
[390977832,1760257839191,-500.0,0.00024141,2]
[390977833,1760257839200,-500.0,0.00024141,2]
[390977834,1760257839210,-691.3306308,0.00024141,2]
[390977835,1760257839220,-500.0,0.00024141,2]
[390977836,1760257839229,-500.0,0.00024141,2]
[390977837,1760257839239,-500.0,0.00024141,2]
[390977838,1760257839252,-500.0,0.00024141,2]
[390977839,1760257839262,-500.0,0.00024141,2]
[390977840,1760257839272,-500.0,0.00024141,2]
[390977841,1760257839282,-500.0,0.00024141,2]
[390977842,1760257839293,-6079.9990298,0.00024141,2]
[390977843,1760257839303,-501.49851512,0.00024142,2]
[390977844,1760257839312,-500.0,0.00024142,2]
[390977845,1760257839323,-500.0,0.00024142,2]
[390977846,1760257839332,-500.0,0.00024142,2]
[390977847,1760257839342,-500.0,0.00024142,2]
[390977848,1760257839352,-500.0,0.00024142,2]
[390977849,1760257839362,-500.0,0.00024142,2]
[390977850,1760257839373,-500.0,0.00024142,2]
[390977851,1760257839384,-500.0,0.00024142,2]
[390977852,1760257839394,-500.0,0.00024142,2]
[390977853,1760257839404,-500.0,0.00024142,2]
[390977854,1760257839415,-500.0,0.00024142,2]
[390977855,1760257839424,-500.0,0.00024142,2]
[390977856,1760257839433,-529.87188832,0.00024142,2]
[390977857,1760257839442,-500.0,0.00024142,2]
[390977858,1760257839451,-500.0,0.00024142,2]
[390977859,1760257839460,-500.0,0.00024142,2]
[390977860,1760257839470,-501.07650477,0.00024142,2]
[390977861,1760257839479,-500.0,0.00024142,2]
[390977862,1760257839488,-500.0,0.00024142,2]
[390977863,1760257839498,-500.0,0.00024142,2]
[390977864,1760257839507,-500.0,0.00024142,2]
[390977865,1760257839516,-301.51615066,0.00024142,2]
[390977866,1760257839526,-500.0,0.00024142,2]
[390977867,1760257839535,-501.20792899,0.00024142,2]
[390977868,1760257839544,-500.0,0.00024142,2]
[390977869,1760257839554,-500.0,0.00024142,2]
[390977870,1760257839563,-500.0,0.00024142,2]
[390977871,1760257839572,-500.0,0.00024142,2]
[390977872,1760257839581,-500.0,0.00024142,2]
[390977873,1760257839590,-500.0,0.00024142,2]
[390977874,1760257839599,-500.0,0.00024142,2]
[390977875,1760257839608,-500.0,0.00024142,2]
[390977876,1760257839621,-500.0,0.00024142,2]
[390977877,1760257839632,-500.0,0.00024142,2]
[390977878,1760257839642,-500.0,0.00024142,2]
[390977879,1760257839652,-500.0,0.00024142,2]
[390977880,1760257839662,-500.0,0.00024142,2]
[390977881,1760257839672,-500.0,0.00024142,2]
[390977882,1760257839683,-500.0,0.00024142,2]
[390977883,1760257839693,-500.0,0.00024142,2]
[390977884,1760257839702,-500.0,0.00024142,2]
[390977885,1760257839711,-500.0,0.00024142,2]
[390977887,1760257839720,-504.57924601,0.00024142,2]
[390977888,1760257839729,-500.0,0.00024142,2]
[390977889,1760257839738,-500.0,0.00024142,2]
[390977890,1760257839748,-500.0,0.00024142,2]
[390977891,1760257839757,-500.0,0.00024142,2]
[390977892,1760257839767,-500.0,0.00024142,2]
[390977893,1760257839777,-500.0,0.00024142,2]
[390977894,1760257839787,-501.96635387,0.00024142,2]
[390977895,1760257839797,-500.0,0.00024142,2]
[390977896,1760257839806,-500.0,0.00024142,2]
[390977897,1760257839815,-500.0,0.00024142,2]
[390977898,1760257839825,-500.0,0.00024142,2]
[390977899,1760257839834,-500.0,0.00024142,2]
[390977900,1760257839843,-500.0,0.00024142,2]
[390977901,1760257839851,-500.0,0.00024142,2]
[390977903,1760257839861,-500.0,0.00024142,2]
[390977905,1760257839873,-500.0,0.00024142,2]
[390977906,1760257839883,-500.0,0.00024142,2]
[390977907,1760257839893,-500.0,0.00024142,2]
[390977908,1760257839903,-500.0,0.00024142,2]
[390977909,1760257839913,-500.0,0.00024142,2]
[390977910,1760257839923,-500.0,0.00024142,2]
[390977911,1760257839932,-500.0,0.00024142,2]
[390977912,1760257840072,-500.0,0.00024142,2]
[390977913,1760257840082,-500.0,0.00024142,2]
[390977914,1760257840092,-500.0,0.00024142,2]
[390977915,1760257840101,-504.39754967,0.00024142,2]
[390977916,1760257840110,-500.0,0.00024142,2]
[390977917,1760257840120,-500.0,0.00024142,2]
[390977919,1760257840134,-500.0,0.00024142,2]
[390977921,1760257840143,-500.0,0.00024142,2]
[390977923,1760257840153,-502.13180974,0.00024142,2]
[390977924,1760257840162,-500.0,0.00024142,2]
[390977926,1760257840171,-500.0,0.00024142,2]
[390977928,1760257840180,-500.0,0.00024142,2]
[390977929,1760257840189,-500.0,0.00024142,2]
[390977930,1760257840199,-500.0,0.00024142,2]
[390977931,1760257840207,-500.57614883,0.00024142,2]
[390977932,1760257840217,-500.0,0.00024142,2]
[390977933,1760257840231,-500.0,0.00024142,2]
[390977934,1760257840241,-560.21227236,0.00024142,2]
[390977935,1760257840250,-500.0,0.00024142,2]
[390977936,1760257840260,-500.0,0.00024142,2]
[390977937,1760257840270,-500.0,0.00024142,2]
[390977938,1760257840279,-500.0,0.00024142,2]
[390977939,1760257840289,-500.0,0.00024142,2]
[390977940,1760257840298,-500.0,0.00024142,2]
[390977941,1760257840310,-500.0,0.00024142,2]
[390977942,1760257840319,-500.0,0.00024142,2]
[390977943,1760257840329,-500.0,0.00024142,2]
[390977944,1760257840338,-203.27970239,0.00024142,2]
[390977945,1760257840348,-500.0,0.00024142,2]
[390977946,1760257840357,-500.0,0.00024142,2]
[390977947,1760257840367,-502.25975422,0.00024142,2]
[390977948,1760257840378,-500.0,0.00024142,2]
[390977949,1760257840387,-500.0,0.00024142,2]
[390977950,1760257840397,-500.0,0.00024142,2]
[390977951,1760257840406,-500.0,0.00024142,2]
[390977952,1760257840415,-500.72660461,0.00024142,2]
[390977953,1760257840425,-500.0,0.00024142,2]
[390977954,1760257840435,-500.0,0.00024142,2]
[390977955,1760257840444,-500.0,0.00024142,2]
[390977956,1760257840454,-500.0,0.00024142,2]
[390977957,1760257840464,-500.0,0.00024142,2]
[390977958,1760257840474,-500.0,0.00024142,2]
[390977959,1760257840483,-500.0,0.00024142,2]
[390977960,1760257840493,-301.67,0.00024142,2]
[390977961,1760257840502,-500.0,0.00024142,2]
[390977962,1760257840511,-500.0,0.00024142,2]
[390977963,1760257840520,-500.0,0.00024142,2]
[390977964,1760257840530,-308.6517245,0.00024142,2]
[390977965,1760257840539,-500.0,0.00024142,2]
[390977966,1760257840548,-500.0,0.00024142,2]
[390977967,1760257840558,-500.0,0.00024142,2]
[390977968,1760257840567,-500.0,0.00024142,2]
[390977969,1760257840576,-500.0,0.00024142,2]
[390977970,1760257840586,-500.0,0.00024142,2]
[390977971,1760257840595,-500.0,0.00024142,2]
[390977972,1760257840605,-500.0,0.00024142,2]
[390977973,1760257840614,-500.0,0.00024142,2]
[390977974,1760257840626,-500.0,0.00024142,2]
[390977975,1760257840635,-500.0,0.00024142,2]
[390977976,1760257840645,-501.49242872,0.00024142,2]
[390977977,1760257840655,-500.0,0.00024142,2]
[390977978,1760257840664,-500.0,0.00024142,2]
[390977979,1760257840673,-500.0,0.00024142,2]
[390977980,1760257840683,-500.0,0.00024142,2]
[390977981,1760257840692,-500.0,0.00024142,2]
[390977982,1760257840701,-500.0,0.00024142,2]
[390977983,1760257840710,-500.0,0.00024142,2]
[390977984,1760257840720,-500.0,0.00024142,2]
[390977985,1760257840729,-500.0,0.00024142,2]
[390977986,1760257840739,-534.61305204,0.00024142,2]
[390977987,1760257840748,-500.0,0.00024142,2]
[390977988,1760257840757,-500.0,0.00024142,2]
[390977989,1760257840767,-500.0,0.00024142,2]
[390977990,1760257840777,-500.0,0.00024142,2]
[390977991,1760257840786,-500.0,0.00024142,2]
[390977992,1760257840795,-500.0,0.00024142,2]
[390977993,1760257840804,-500.0,0.00024142,2]
[390977994,1760257840815,-305.23920775,0.00024142,2]
[390977995,1760257840825,-500.0,0.00024142,2]
[390977996,1760257840836,-500.0,0.00024142,2]
[390977997,1760257840847,-500.0,0.00024142,2]
[390977998,1760257840857,-330.59506078,0.00024142,2]
[390977999,1760257840867,-500.0,0.00024142,2]
[390978000,1760257840879,-500.0,0.00024142,2]
[390978001,1760257840889,-500.0,0.00024142,2]
[390978002,1760257840899,-500.0,0.00024142,2]
[390978003,1760257840909,-332.98,0.00024142,2]
[390978004,1760257840918,-500.0,0.00024142,2]
[390978005,1760257840929,-500.0,0.00024142,2]
[390978006,1760257840939,-500.0,0.00024142,2]
[390978007,1760257840949,-500.0,0.00024142,2]
[390978008,1760257840960,-500.0,0.00024142,2]
[390978009,1760257840970,-500.0,0.00024142,2]
[390978010,1760257840980,-500.0,0.00024142,2]
[390978011,1760257840989,-500.0,0.00024142,2]
[390978012,1760257840998,-501.28531194,0.00024142,2]
[390978013,1760257841007,-500.0,0.00024142,2]
[390978014,1760257841016,-500.0,0.00024142,2]
[390978015,1760257841026,-500.0,0.00024142,2]
[390978016,1760257841036,-500.0,0.00024142,2]
[390978017,1760257841044,-500.0,0.00024142,2]
[390978018,1760257841054,-500.0,0.00024142,2]
[390978019,1760257841063,-500.0,0.00024142,2]
[390978020,1760257841072,-500.99683721,0.00024142,2]
[390978021,1760257841082,-500.0,0.00024142,2]
[390978022,1760257841091,-501.69374582,0.00024142,2]
[390978023,1760257841100,-500.0,0.00024142,2]
[390978024,1760257841110,-500.0,0.00024142,2]
[390978025,1760257841121,-500.0,0.00024142,2]
[390978026,1760257841130,-500.0,0.00024142,2]
[390978027,1760257841139,-500.0,0.00024142,2]
[390978028,1760257841150,-500.0,0.00024142,2]
[390978029,1760257841159,-500.0,0.00024142,2]
[390978030,1760257841169,-500.0,0.00024142,2]
[390978031,1760257841178,-571.57252726,0.00024142,2]
[390978032,1760257841187,-500.0,0.00024142,2]
[390978033,1760257841196,-502.33088566,0.00024142,2]
[390978034,1760257841206,-500.0,0.00024142,2]
[390978035,1760257841216,-500.0,0.00024142,2]
[390978036,1760257841232,-500.0,0.00024142,2]
[390978037,1760257841249,-500.0,0.00024142,2]
[390978038,1760257841269,-500.0,0.00024142,2]
[390978039,1760257841292,-500.0,0.00024142,2]
[390978040,1760257841303,-500.0,0.00024142,2]
[390978041,1760257841313,-500.0,0.00024142,2]
[390978042,1760257841322,-500.0,0.00024142,2]
[390978043,1760257841331,-500.0,0.00024142,2]
[390978044,1760257841340,-500.0,0.00024142,2]
[390978045,1760257841350,-482.11690002,0.00024142,2]
[390978046,1760257841358,-500.0,0.00024142,2]
[390978047,1760257841369,-500.0,0.00024142,2]
[390978048,1760257841378,-501.84305985,0.00024142,2]
[390978049,1760257841387,-500.0,0.00024142,2]
[390978050,1760257841396,-645.31,0.00024142,2]
[390978051,1760257841405,-500.0,0.00024142,2]
[390978052,1760257841414,-500.0,0.00024142,2]
[390978053,1760257841423,-500.4601577,0.00024142,2]
[390978054,1760257841432,-422.07411172,0.00024142,2]
[390978055,1760257841441,-500.73783963,0.00024142,2]
[390978056,1760257841451,-501.39088506,0.00024142,2]
[390978057,1760257841460,-514.68683796,0.00024142,2]
[390978058,1760257841470,-500.0,0.00024142,2]
[390978059,1760257841479,-500.0,0.00024142,2]
[390978060,1760257841488,-500.0,0.00024142,2]
[390978061,1760257841497,-500.0,0.00024142,2]
[390978062,1760257841507,-500.0,0.00024142,2]
[390978063,1760257841517,-500.0,0.00024142,2]
[390978064,1760257841526,-500.0,0.00024142,2]
[390978065,1760257841536,-500.0,0.00024142,2]
[390978066,1760257841546,-502.16714002,0.00024142,2]
[390978067,1760257841558,-501.29728258,0.00024142,2]
[390978068,1760257841567,-500.0,0.00024142,2]
[390978069,1760257841576,-500.0,0.00024142,2]
[390978070,1760257841585,-500.0,0.00024142,2]
[390978071,1760257841595,-502.2914397,0.00024142,2]
[390978072,1760257841604,-501.0467015,0.00024142,2]
[390978073,1760257841614,-500.0,0.00024142,2]
[390978074,1760257841629,-620.13031075,0.00024142,2]
[390978075,1760257841639,-500.0,0.00024142,2]
[390978076,1760257841650,-500.0,0.00024142,2]
[390978077,1760257841661,-500.0,0.00024142,2]
[390978078,1760257841671,-500.0,0.00024142,2]
[390978079,1760257841680,-500.0,0.00024142,2]
[390978080,1760257841690,-500.0,0.00024142,2]
[390978081,1760257841700,-500.0,0.00024149,2]
[390978082,1760257841710,-10519.0,0.0002415,2]
[390978083,1760257841720,-973.0,0.00024157,2]
[390978084,1760257841730,-500.0,0.00024173,2]
[390978085,1760257841739,-500.0,0.00024173,2]
[390978086,1760257841748,-500.0,0.00024173,2]
[390978087,1760257841758,-500.0,0.00024173,2]
[390978088,1760257841768,-500.0,0.00024173,2]
[390978089,1760257841778,-500.0,0.00024173,2]
[390978090,1760257841787,-500.0,0.00024173,2]
[390978091,1760257841796,-500.0,0.00024173,2]
[390978092,1760257841806,-500.0,0.00024173,2]
[390978093,1760257841815,-500.0,0.00024173,2]
[390978094,1760257841824,-500.0,0.00024173,2]
[390978095,1760257841834,-500.0,0.00024173,2]
[390978096,1760257841844,-500.0,0.00024173,2]
[390978097,1760257841854,-500.0,0.00024173,2]
[390978098,1760257841863,-500.0,0.00024173,2]
[390978099,1760257841875,-500.0,0.00024173,2]
[390978100,1760257841885,-500.0,0.00024173,2]
[390978101,1760257841895,-500.0,0.00024173,2]
[390978102,1760257841904,-500.0,0.00024299,2]
[390978103,1760257841913,-500.0,0.00024299,2]
[390978104,1760257841922,-500.0,0.00024299,2]
[390978105,1760257841932,-500.0,0.00024299,2]
[390978106,1760257841942,-500.0,0.00024299,2]
[390978107,1760257841951,-500.0,0.00024299,2]
[390978108,1760257841962,-500.0,0.00024299,2]
[390978109,1760257841972,-500.0,0.00024299,2]
[390978110,1760257841981,-500.0,0.00024299,2]
[390978111,1760257841991,-536.30528424,0.00024299,2]
[390978112,1760257842000,-965.34951163,0.00024299,2]
[390978113,1760257842010,-50000.0,0.000243,2]
[390978114,1760257842019,-151.0,0.000243,2]
[390978115,1760257842028,-151.0,0.000243,2]
[390978116,1760257842037,-151.0,0.000243,7]
[390978117,1760257842046,-378.6786,0.00024378,2]
[390978118,1760257842055,-500.0,0.00024399,2]
[390978119,1760257842064,-500.0,0.00024399,2]
[390978120,1760257842075,-500.0,0.00024399,2]
[390978121,1760257842084,-500.0,0.00024399,2]
[390978122,1760257842093,-500.0,0.00024399,2]
[390978123,1760257842103,-160.82653461,0.00024399,2]
[390978124,1760257842112,-200.98733254,0.00024399,2]
[390978125,1760257842123,-426.60754991,0.00024428,2]
[390978126,1760257842132,-500.0,0.00024449,2]
[390978127,1760257842141,-500.0,0.00024449,2]
[390978128,1760257842150,-500.0,0.00024453,2]
[390978129,1760257842160,-500.0,0.00024453,2]
[390978130,1760257842169,-1271.54994925,0.00024485,2]
[390978131,1760257842178,-500.0,0.00024499,2]
[390978132,1760257842187,-500.0,0.00024499,2]
[390978133,1760257842196,-500.0,0.00024499,2]
[390978134,1760257842205,-500.0,0.00024499,2]
[390978135,1760257842214,-500.0,0.00024499,2]
[390978136,1760257842224,-500.0,0.00024499,2]
[390978137,1760257842237,-500.0,0.00024499,2]
[390978138,1760257842246,-567.68992436,0.00024499,2]
[390978139,1760257842255,-231.02551829,0.0002451,2]
[390978140,1760257842264,-200.0,0.0002451,7]
[390978141,1760257842274,-1563.0,0.00024562,2]
[390978142,1760257842285,-3000.0,0.000246,2]
[390978143,1760257842294,-3000.0,0.0002461,2]
[390978144,1760257842391,-3000.0,0.0002462,2]
[390978145,1760257842412,-500.0,0.00024621,2]
[390978146,1760257842421,-500.0,0.00024621,2]
[390978147,1760257842430,-500.0,0.00024621,2]
[390978148,1760257842439,-500.0,0.00024621,2]
[390978149,1760257842448,-500.0,0.00024621,2]
[390978150,1760257842458,-500.92345823,0.00024621,2]
[390978151,1760257842467,-221.73178906,0.00024621,2]
[390978152,1760257842538,-292.16202918,0.00024621,2]
[390978153,1760257842547,-500.0,0.00024621,2]
[390978154,1760257842556,-500.0,0.00024621,2]
[390978155,1760257842566,-501.55939196,0.00024621,2]
[390978156,1760257842575,-500.0,0.00024621,2]
[390978157,1760257842585,-181.77359289,0.00024627,2]
[390978159,1760257842665,-206.22640711,0.00024627,2]
[390978160,1760257842675,-3000.0,0.0002463,2]
[390978161,1760257842684,-339.0,0.00024631,2]
[390978162,1760257842693,-339.0,0.00024634,2]
[390978163,1760257842702,-3000.0,0.0002464,2]
[390978164,1760257842711,-462.34159289,0.0002465,2]
[390978165,1760257842722,-2537.65840711,0.0002465,2]
[390978166,1760257842731,-1500.0,0.00024657,10]
[390978167,1760257842740,-3000.0,0.0002466,2]
[390978168,1760257842749,-3000.0,0.0002467,2]
[390978169,1760257842758,-3000.0,0.0002468,2]
[390978170,1760257842767,-3000.0,0.0002469,2]
[390978171,1760257842777,-3000.0,0.000247,2]
[390978172,1760257842786,-649.59302719,0.000247,2]
[390978173,1760257842798,-2882.51453559,0.000247,2]
[390978174,1760257842807,-3000.0,0.0002471,2]
[390978175,1760257842816,-333.275,0.0002471,7]
[390978176,1760257842825,-1563.0,0.00024714,2]
[390978177,1760257842834,-151.0,0.00024714,2]
[390978178,1760257842844,-151.0,0.00024714,2]
[390978179,1760257842853,-3000.0,0.0002472,2]
[390978181,1760257842863,-502.6508505,0.00024721,2]
[390978183,1760257842873,-352.73838384,0.00024721,2]
[390978185,1760257842883,-502.09367115,0.00024721,2]
[390978187,1760257842892,-500.0,0.00024721,2]
[390978188,1760257842902,-500.0,0.00024721,2]
[390978189,1760257842911,-500.0,0.00024721,2]
[390978190,1760257842920,-500.0,0.00024721,2]
[390978191,1760257842929,-500.0,0.00024721,2]
[390978192,1760257842938,-500.0,0.00024721,2]
[390978193,1760257842947,-500.0,0.00024721,2]
[390978194,1760257842957,-500.0,0.00024721,2]
[390978196,1760257842966,-500.0,0.00024721,2]
[390978197,1760257842976,-500.0,0.00024721,2]
[390978198,1760257842985,-500.0,0.00024721,2]
[390978199,1760257842994,-500.0,0.00024721,2]
[390978200,1760257843004,-500.0,0.00024721,2]
[390978201,1760257843013,-1000.0,0.00024721,2]
[390978202,1760257843023,-3000.0,0.0002473,2]
[390978203,1760257843032,-3000.0,0.0002474,2]
[390978204,1760257843042,-3000.0,0.0002475,2]
[390978205,1760257843051,-3000.0,0.0002476,2]
[390978206,1760257843060,-160.0,0.00024766,2]
[390978207,1760257843071,-417.15472785,0.00024766,2]
[390978208,1760257843080,-298.14195131,0.00024766,2]
[390978209,1760257843089,-160.0,0.00024767,2]
[390978210,1760257843098,-388.0,0.00024769,2]
[390978211,1760257843107,-3000.0,0.0002477,2]
[390978212,1760257843116,-170.595212,0.00024773,2]
[390978213,1760257843127,-501.9676903,0.00024773,2]
[390978214,1760257843137,-500.0,0.00024773,2]
[390978215,1760257843146,-3000.0,0.0002478,2]
[390978216,1760257843155,-1567.9519887,0.00024785,2]
[390978217,1760257843164,-3000.0,0.0002479,2]
[390978218,1760257843174,-339.0,0.00024796,2]
[390978219,1760257843183,-13603.06580924,0.000248,2]
[390978227,1760257846993,-1173.67422228,0.00023759,2]
[390978228,1760257847006,-1642.44560013,0.00023759,2]
[390978229,1760257847022,-500.0,0.00023999,2]
[390978230,1760257847035,-11209.16,0.00024,2]
[390978231,1760257847049,-1829.9859669,0.00024042,2]
[390978232,1760257847061,-741.293083,0.00024482,2]
[390978233,1760257854984,-1088.69288389,0.00024482,2]
[390978234,1760257854993,-202.61,0.00024489,3]
[390978235,1760257855002,-412.64,0.0002479,10]
[390978236,1760257855011,-242055.106605,0.000248,2]
[390978237,1760257855097,-473.8569137,0.000248,2]
[390978238,1760257859001,150.0,0.00018952,2]
[390978239,1760257859556,150.0,0.00020674,2]
[390978240,1760257934999,150.0,0.00019118,2]
[390978241,1760257935479,150.0,0.00020856,2]
[390978243,1760258024440,150.0,0.00019387,2]